lending/lending_fUSD_20251218
["ID","MTS","AMOUNT","RATE_DAILY","PERIOD"]
[398954092,1766019039728,-500.0,0.0001654,2]
[398954093,1766019039737,-500.0,0.0001654,2]
[398954094,1766019039746,-500.0,0.0001654,2]
[398954095,1766019039755,-645.50218631,0.0001654,2]
[398954096,1766019039764,-500.0,0.0001654,2]
[398954097,1766019039773,-500.0,0.0001654,2]
[398954098,1766019039786,-500.0,0.0001654,2]
[398954099,1766019039796,-500.0,0.0001654,2]
[398954100,1766019039805,-500.0,0.0001654,2]
[398954101,1766019039815,-517.52780277,0.0001654,2]
[398954102,1766019039824,-500.0,0.0001654,2]
[398954103,1766019039833,-500.0,0.0001654,2]
[398954104,1766019039843,-500.0,0.0001654,2]
[398954106,1766019039852,-500.0,0.0001654,2]
[398954108,1766019039861,-500.0,0.0001654,2]
[398954110,1766019039871,-500.0,0.0001654,2]
[398954111,1766019039880,-500.0,0.0001654,2]
[398954112,1766019039889,-236.05898136,0.0001654,2]
[398954113,1766019039898,-500.0,0.0001654,2]
[398954114,1766019039907,-500.0,0.0001654,2]
[398954115,1766019039916,-500.0,0.0001654,2]
[398954116,1766019039925,-500.0,0.0001654,2]
[398954117,1766019039934,-530.90558396,0.0001654,2]
[398954118,1766019039943,-500.0,0.0001654,2]
[398954119,1766019039952,-500.0,0.0001654,2]
[398954120,1766019039961,-500.0,0.0001654,2]
[398954121,1766019039969,-500.0,0.0001654,2]
[398954122,1766019039979,-500.0,0.0001654,2]
[398954123,1766019039987,-500.0,0.0001654,2]
[398954124,1766019039996,-500.0,0.0001654,2]
[398954125,1766019040007,-500.0,0.0001654,2]
[398954126,1766019040017,-641.1096514,0.0001654,2]
[398954127,1766019040028,-500.0,0.0001654,2]
[398954128,1766019040039,-500.0,0.0001654,2]
[398954129,1766019040049,-500.0,0.0001654,2]
[398954130,1766019040058,-500.0,0.0001654,2]
[398954131,1766019040067,-500.0,0.0001654,2]
[398954132,1766019040076,-500.0,0.0001654,2]
[398954133,1766019040086,-500.0,0.0001654,2]
[398954134,1766019040096,-500.0,0.0001654,2]
[398954135,1766019040107,-500.0,0.0001654,2]
[398954136,1766019040116,-500.0,0.0001654,2]
[398954137,1766019040126,-500.0,0.0001654,2]
[398954138,1766019040135,-500.0,0.0001654,2]
[398954139,1766019040144,-586.97867611,0.0001654,2]
[398954140,1766019040153,-500.0,0.0001654,2]
[398954141,1766019040162,-500.0,0.0001654,2]
[398954142,1766019040172,-500.0,0.0001654,2]
[398954143,1766019040181,-500.0,0.0001654,2]
[398954144,1766019040191,-286.90864955,0.0001654,2]
[398954145,1766019040200,-500.0,0.0001654,2]
[398954146,1766019040209,-500.0,0.0001654,2]
[398954147,1766019040219,-504.44339488,0.0001654,2]
[398954148,1766019040228,-500.0,0.0001654,2]
[398954149,1766019040238,-500.0,0.0001654,2]
[398954150,1766019040247,-500.0,0.0001654,2]
[398954151,1766019040257,-500.0,0.0001654,2]
[398954152,1766019040266,-452.42388811,0.0001654,2]
[398954153,1766019040275,-500.0,0.0001654,2]
[398954154,1766019040284,-500.0,0.0001654,2]
[398954155,1766019040293,-500.0,0.0001654,2]
[398954156,1766019040302,-500.0,0.0001654,2]
[398954157,1766019040311,-500.0,0.0001654,2]
[398954158,1766019040321,-500.0,0.0001654,2]
[398954159,1766019040330,-500.0,0.0001654,2]
[398954160,1766019040339,-500.0,0.0001654,2]
[398954161,1766019040348,-247.35450026,0.0001654,2]
[398954162,1766019040357,-500.0,0.0001654,2]
[398954163,1766019040366,-500.0,0.0001654,2]
[398954164,1766019040375,-500.0,0.0001654,2]
[398954165,1766019040384,-282.25650796,0.0001654,2]
[398954166,1766019040393,-1000.0,0.00016542,2]
[398954167,1766019040402,-829.77,0.00016568,2]
[398954168,1766019040412,-500.0,0.00016568,2]
[398954169,1766019040420,-500.0,0.00016568,2]
[398954170,1766019040430,-500.0,0.00016568,2]
[398954171,1766019040439,-500.0,0.00016568,2]
[398954172,1766019040449,-500.0,0.00016568,2]
[398954173,1766019040459,-591.38673749,0.00016568,2]
[398954174,1766019040468,-312.89624683,0.00016568,2]
[398954175,1766019040477,-1000.0,0.00016568,2]
[398954176,1766019040486,-822.88830232,0.00016568,2]
[398954177,1766019040495,-2541.38,0.00016616,2]
[398954178,1766019040510,-1000.0,0.00016642,2]
[398954179,1766019040519,-893.173,0.00016642,2]
[398954180,1766019040528,-829.8,0.00016842,2]
[398954181,1766019040536,-166.66,0.00016935,2]
[398954182,1766019040546,-500.0,0.00016986,2]
[398954183,1766019040555,-1789.912,0.00016986,2]
[398954184,1766019040564,-500.0,0.00016999,2]
[398954185,1766019040573,-500.0,0.00016999,2]
[398954186,1766019040583,-500.0,0.00016999,2]
[398954187,1766019040593,-500.0,0.00016999,2]
[398954188,1766019040603,-500.0,0.00016999,2]
[398954189,1766019040612,-500.0,0.00016999,2]
[398954190,1766019040622,-500.0,0.00016999,2]
[398954191,1766019040634,-500.0,0.00016999,2]
[398954192,1766019040645,-500.0,0.00016999,2]
[398954193,1766019040654,-500.0,0.00016999,2]
[398954194,1766019040663,-500.0,0.00016999,2]
[398954195,1766019040673,-500.0,0.00016999,2]
[398954196,1766019040683,-500.0,0.00016999,2]
[398954197,1766019040693,-500.0,0.00016999,2]
[398954198,1766019040702,-250.0,0.00017,2]
[398954199,1766019040711,-600.64,0.0001726,3]
[398954200,1766019040720,-249.34012987,0.00017325,2]
[398954201,1766019040737,-150.42,0.00017341,2]
[398954202,1766019040751,-166.66,0.0001746,2]
[398954203,1766019040760,-802.40723931,0.00017534,2]
[398954204,1766019040769,-166.66,0.00017984,2]
[398954205,1766019040779,-1000.0,0.00018082,2]
[398954206,1766019040788,-250.0,0.00018175,2]
[398954207,1766019040797,-204.75,0.00018275,2]
[398954208,1766019040807,-166.66,0.00018508,2]
[398954209,1766019040815,-1000.0,0.0001876,2]
[398954210,1766019040825,-300.0,0.00019,2]
[398954211,1766019040834,-7315.5165995,0.00019238,2]
[398954212,1766019040849,-1000.0,0.00019438,2]
[398954213,1766019040858,-150.42,0.00019818,2]
[398954214,1766019040871,-150.06680494,0.0002,20]
[398954215,1766019040881,-151.0,0.00020031,2]
[398954216,1766019040890,-300.0,0.00020031,2]
[398954217,1766019040901,-264.56833668,0.00020067,2]
[398954218,1766019040912,-156.7335532,0.00020112,2]
[398954219,1766019040922,-1000.0,0.00020116,2]
[398954220,1766019040931,-150.0,0.0002013,2]
[398954221,1766019040940,-654.65,0.00020187,2]
[398954222,1766019040950,-341.83,0.00020758,2]
[398954223,1766019040961,-1000.0,0.00020795,2]
[398954224,1766019040970,-5000.0,0.00021918,2]
[398954225,1766019040980,-168.0,0.00022121,2]
[398954226,1766019040989,-7315.5165995,0.00022139,2]
[398954227,1766019040998,-168.0,0.00022217,2]
[398954228,1766019041007,-150.42,0.00022295,2]
[398954229,1766019041016,-168.0,0.00022303,2]
[398954230,1766019041025,-168.0,0.00022339,2]
[398954231,1766019041035,-168.0,0.00022503,2]
[398954232,1766019041044,-168.0,0.00022525,2]
[398954233,1766019041053,-168.0,0.00022529,2]
[398954234,1766019041063,-168.0,0.00022543,2]
[398954235,1766019041073,-168.0,0.00022733,2]
[398954236,1766019041095,-150.0,0.00022806,2]
[398954237,1766019041107,-500.0,0.00022806,2]
[398954238,1766019041116,-150.0,0.00022806,2]
[398954239,1766019041126,-500.0,0.00022806,2]
[398954240,1766019041135,-500.0,0.00022806,2]
[398954241,1766019041145,-500.0,0.00022806,2]
[398954242,1766019041154,-500.0,0.00022806,2]
[398954243,1766019041164,-500.0,0.00022806,2]
[398954244,1766019041174,-500.0,0.00022806,2]
[398954245,1766019041184,-500.0,0.00022806,2]
[398954246,1766019041193,-179.96290479,0.00022806,2]
[398954247,1766019041203,-150.0,0.00022806,2]
[398954248,1766019041212,-151.73216425,0.00022806,2]
[398954249,1766019041221,-150.0,0.00022806,2]
[398954250,1766019041231,-150.0,0.00022806,2]
[398954251,1766019041242,-500.0,0.00022806,2]
[398954252,1766019041253,-150.0,0.00022806,2]
[398954253,1766019041263,-150.0,0.00022806,2]
[398954254,1766019041272,-150.0,0.00022806,2]
[398954255,1766019041282,-500.0,0.00022806,2]
[398954256,1766019041292,-500.0,0.00022806,2]
[398954257,1766019041302,-150.0,0.00022806,2]
[398954258,1766019041312,-169.00704215,0.00022806,2]
[398954259,1766019041321,-500.0,0.00022806,2]
[398954260,1766019041331,-500.0,0.00022806,2]
[398954261,1766019041341,-500.0,0.00022806,2]
[398954262,1766019041350,-150.0,0.00022806,2]
[398954263,1766019041361,-150.0,0.00022806,2]
[398954264,1766019041370,-168.0,0.00022819,2]
[398954265,1766019041380,-151.0,0.0002294,7]
[398954266,1766019041389,-150.0,0.00022943,2]
[398954267,1766019041399,-500.0,0.00022943,2]
[398954268,1766019041408,-150.0,0.00022943,2]
[398954269,1766019041417,-500.0,0.00022943,2]
[398954270,1766019041426,-500.0,0.00022943,2]
[398954271,1766019041435,-500.0,0.00022943,2]
[398954272,1766019041444,-500.0,0.00022943,2]
[398954273,1766019041453,-500.0,0.00022943,2]
[398954274,1766019041463,-500.0,0.00022943,2]
[398954275,1766019041472,-500.0,0.00022943,2]
[398954276,1766019041481,-150.0,0.00022943,2]
[398954277,1766019041491,-240.06808677,0.00022943,2]
[398954278,1766019041503,-150.0,0.00022943,2]
[398954279,1766019041513,-500.0,0.00022943,2]
[398954280,1766019041522,-150.0,0.00022943,2]
[398954281,1766019041531,-150.0,0.00022943,2]
[398954282,1766019041542,-500.0,0.00022943,2]
[398954283,1766019041551,-500.0,0.00022943,2]
[398954284,1766019041562,-150.0,0.00022943,2]
[398954285,1766019041574,-500.0,0.00022943,2]
[398954286,1766019041589,-500.0,0.00022943,2]
[398954287,1766019041599,-500.0,0.00022943,2]
[398954288,1766019041608,-150.0,0.00022943,2]
[398954289,1766019041618,-168.0,0.00022953,2]
[398954290,1766019041627,-2426.0,0.00022966,2]
[398954291,1766019041637,-168.0,0.00023021,2]
[398954292,1766019041647,-168.0,0.00023026,2]
[398954293,1766019041656,-150.0,0.0002308,2]
[398954294,1766019041665,-500.0,0.0002308,2]
[398954295,1766019041674,-150.0,0.0002308,2]
[398954296,1766019041683,-500.0,0.0002308,2]
[398954297,1766019041692,-500.0,0.0002308,2]
[398954298,1766019041701,-500.0,0.0002308,2]
[398954299,1766019041710,-500.0,0.0002308,2]
[398954300,1766019041719,-500.0,0.0002308,2]
[398954301,1766019041729,-500.0,0.0002308,2]
[398954302,1766019041738,-500.0,0.0002308,2]
[398954303,1766019041747,-232.97899023,0.0002308,2]
[398954304,1766019041755,-181.83250831,0.0002308,2]
[398954305,1766019041765,-500.0,0.0002308,2]
[398954306,1766019041774,-150.0,0.0002308,2]
[398954307,1766019041782,-150.0,0.0002308,2]
[398954308,1766019041791,-500.0,0.0002308,2]
[398954309,1766019041801,-500.0,0.0002308,2]
[398954310,1766019041810,-150.0,0.0002308,2]
[398954311,1766019041819,-500.0,0.0002308,2]
[398954312,1766019041828,-500.0,0.0002308,2]
[398954313,1766019041836,-587.30937559,0.0002308,2]
[398954314,1766019041845,-250.0,0.0002308,2]
[398954315,1766019041855,-150.0,0.00023217,2]
[398954316,1766019041864,-500.0,0.00023217,2]
[398954317,1766019041873,-277.79959508,0.00023217,2]
[398954318,1766019041882,-500.0,0.00023217,2]
[398954319,1766019041892,-500.0,0.00023217,2]
[398954320,1766019041901,-500.0,0.00023217,2]
[398954321,1766019041911,-500.0,0.00023217,2]
[398954322,1766019041920,-500.0,0.00023217,2]
[398954323,1766019041931,-519.30716312,0.00023217,2]
[398954324,1766019041940,-450.0,0.00023217,2]
[398954325,1766019041949,-267.0,0.00023217,2]
[398954326,1766019041958,-500.0,0.00023217,2]
[398954327,1766019041967,-168.0,0.00023346,2]
[398954328,1766019041977,-227.88478406,0.00023354,2]
[398954329,1766019041986,-500.0,0.00023354,2]
[398954330,1766019041995,-500.0,0.00023354,2]
[398954331,1766019042005,-500.0,0.00023354,2]
[398954332,1766019042014,-500.0,0.00023354,2]
[398954333,1766019042023,-500.0,0.00023354,2]
[398954334,1766019042033,-500.0,0.00023354,2]
[398954338,1766019042388,-500.0,0.00023354,2]
[398954339,1766019042399,-168.0,0.00023359,2]
[398954340,1766019042408,-168.0,0.00023385,2]
[398954342,1766019042418,-168.0,0.00023472,2]
[398954343,1766019042428,-631.44294231,0.00023491,2]
[398954345,1766019042437,-500.0,0.00023491,2]
[398954347,1766019042447,-500.0,0.00023491,2]
[398954348,1766019042456,-500.0,0.00023491,2]
[398954349,1766019042465,-500.0,0.00023491,2]
[398954350,1766019042475,-500.0,0.00023491,2]
[398954351,1766019042484,-500.0,0.00023491,2]
[398954352,1766019042494,-150.0,0.00023628,2]
[398954354,1766019042507,-500.0,0.00023628,2]
[398954356,1766019042517,-500.0,0.00023628,2]
[398954358,1766019042526,-500.0,0.00023628,2]
[398954359,1766019042535,-500.0,0.00023628,2]
[398954360,1766019042546,-500.0,0.00023628,2]
[398954361,1766019042555,-168.0,0.00023631,2]
[398954362,1766019042566,-500.0,0.00023765,2]
[398954363,1766019042577,-500.0,0.00023765,2]
[398954364,1766019042587,-210.0,0.00023765,2]
[398954365,1766019042596,-264.56833668,0.00023796,2]
[398954366,1766019042606,-500.0,0.00023902,2]
[398954367,1766019042616,-500.0,0.00023902,2]
[398954368,1766019042625,-168.0,0.00023929,2]
[398954369,1766019042635,-168.0,0.00023988,2]
[398954370,1766019042644,-168.0,0.00023989,2]
[398954371,1766019042654,-500.0,0.00024039,2]
[398954372,1766019042664,-500.0,0.00024039,2]
[398954373,1766019042674,-168.0,0.00024043,2]
[398954374,1766019042684,-500.0,0.00024176,2]
[398954375,1766019042694,-500.0,0.00024176,2]
[398954376,1766019042705,-168.0,0.00024303,2]
[398954377,1766019042715,-500.0,0.00024313,2]
[398954378,1766019042724,-500.0,0.00024313,2]
[398954379,1766019042734,-600.0,0.0002445,2]
[398954380,1766019042743,-424.0,0.0002445,2]
[398954381,1766019042753,-1000.0,0.00024658,2]
[398954382,1766019042762,-721.45,0.00024658,30]
[398954383,1766019042771,-166.42,0.000248,5]
[398954384,1766019042781,-400181.916138,0.000249,3]
[398954385,1766019042792,-234.90137073,0.00024939,2]
[398954387,1766019042802,-7315.5165995,0.00025039,2]
[398954390,1766019042812,-153.0,0.00025733,2]
[398954392,1766019042823,-153.0,0.00025733,2]
[398954393,1766019042832,-153.0,0.00025733,2]
[398954395,1766019042843,-153.0,0.00025761,2]
[398954398,1766019042853,-153.0,0.00025761,2]
[398954399,1766019042863,-153.0,0.00025761,2]
[398954401,1766019042873,-153.0,0.00025761,2]
[398954403,1766019042882,-153.0,0.00025761,2]
[398954405,1766019042891,-153.0,0.00025818,2]
[398954407,1766019042900,-153.0,0.00025818,2]
[398954408,1766019042909,-153.0,0.00025818,2]
[398954409,1766019042918,-153.0,0.00025818,2]
[398954410,1766019042928,-153.0,0.00025818,2]
[398954411,1766019042937,-654.65,0.00026676,2]
[398954412,1766019042947,-150.0,0.00027369,2]
[398954414,1766019042956,-1437.8,0.00027397,2]
[398954416,1766019042964,-300.0,0.00027397,2]
[398954417,1766019042974,-264.56833668,0.00027525,2]
[398954418,1766019042983,-10242.0,0.00027888,5]
[398954419,1766019042992,-7315.5165995,0.0002794,2]
[398954421,1766019043001,-478.3168439,0.00027945,30]
[398954422,1766019043011,-150.0,0.00027945,30]
[398954424,1766019043020,-204.75,0.00028276,2]
[398954426,1766019043029,-200.0,0.00028982,2]
[398954428,1766019043038,-721.45,0.00029492,30]
[398954430,1766019043047,-1000.0,0.00030136,25]
[398954432,1766019043056,-1000.0,0.00030136,27]
[398954434,1766019043066,-1000.0,0.00030136,23]
[398954437,1766019043076,-1000.0,0.00030136,16]
[398954439,1766019043085,-7315.5165995,0.0003084,2]
[398954441,1766019043095,-161.42,0.000309,30]
[398954443,1766019043106,-264.56833668,0.00031255,2]
[398954445,1766019043115,-165.66,0.00031559,14]
[398954447,1766019043125,-163.0,0.000328,31]
[398954449,1766019043134,-163.0,0.000328,60]
[398954451,1766019043144,-295.83,0.00032811,14]
[398954453,1766019043154,-204.154339,0.00032877,60]
[398954455,1766019043163,-521.53,0.00032877,2]
[398954457,1766019043173,-524.07,0.00032877,2]
[398954459,1766019043183,-500.0,0.00032877,7]
[398954461,1766019043192,-500.0,0.00032877,7]
[398954463,1766019043202,-500.0,0.00032877,7]
[398954465,1766019043212,-500.0,0.00032877,7]
[398954467,1766019043221,-500.0,0.00032877,7]
[398954469,1766019043231,-500.0,0.00032877,7]
[398954471,1766019043241,-500.0,0.00032877,7]
[398954473,1766019043250,-500.0,0.00032877,7]
[398954475,1766019043260,-500.0,0.00032877,7]
[398954477,1766019043269,-500.0,0.00032877,7]
[398954479,1766019043278,-500.0,0.00032877,7]
[398954481,1766019043288,-500.0,0.00032877,7]
[398954483,1766019043297,-500.0,0.00032877,7]
[398954485,1766019043307,-500.0,0.00032877,7]
[398954487,1766019043315,-500.0,0.00032877,7]
[398954489,1766019043326,-500.0,0.00032877,7]
[398954491,1766019043335,-500.0,0.00032877,7]
[398954492,1766019043345,-500.0,0.00032877,7]
[398954493,1766019043354,-500.0,0.00032877,7]
[398954494,1766019043363,-500.0,0.00032877,7]
[398954495,1766019043373,-500.0,0.00032877,7]
[398954496,1766019043383,-500.0,0.00032877,7]
[398954497,1766019043392,-500.0,0.00032877,7]
[398954498,1766019043401,-500.0,0.00032877,7]
[398954499,1766019043411,-500.0,0.00032877,7]
[398954500,1766019043420,-500.0,0.00032877,7]
[398954501,1766019043431,-500.0,0.00032877,7]
[398954502,1766019043440,-500.0,0.00032877,7]
[398954503,1766019043449,-500.0,0.00032877,7]
[398954504,1766019043459,-500.0,0.00032877,7]
[398954505,1766019043468,-500.0,0.00032877,7]
[398954506,1766019043477,-500.0,0.00032877,7]
[398954507,1766019043487,-500.0,0.00032877,7]
[398954508,1766019043496,-500.0,0.00032877,7]
[398954509,1766019043509,-500.0,0.00032877,7]
[398954510,1766019043518,-500.0,0.00032877,7]
[398954511,1766019043529,-500.0,0.00032877,7]
[398954512,1766019043540,-500.0,0.00032877,7]
[398954513,1766019043550,-500.0,0.00032877,7]
[398954514,1766019043559,-500.0,0.00032877,7]
[398954515,1766019043569,-500.0,0.00032877,7]
[398954516,1766019043579,-507.40586992,0.00032877,7]
[398954517,1766019043588,-500.0,0.00032877,7]
[398954518,1766019043598,-500.0,0.00032877,7]
[398954519,1766019043607,-500.0,0.00032877,7]
[398954520,1766019043618,-500.0,0.00032877,7]
[398954521,1766019043627,-500.0,0.00032877,7]
[398954522,1766019043636,-500.0,0.00032877,7]
[398954523,1766019043645,-500.0,0.00032877,7]
[398954524,1766019043655,-500.0,0.00032877,7]
[398954525,1766019043663,-500.0,0.00032877,7]
[398954526,1766019043673,-500.0,0.00032877,7]
[398954527,1766019043683,-500.0,0.00032877,7]
[398954528,1766019043694,-150.0,0.00032877,2]
[398954529,1766019043705,-2000.0,0.000329,2]
[398954530,1766019043715,-171.04,0.000329,14]
[398954531,1766019043735,-250.19,0.000329,14]
[398954532,1766019043754,-165.66,0.00032948,14]
[398954533,1766019043771,-446.0,0.00033,5]
[398954534,1766019043781,-150.0,0.00033014,2]
[398954535,1766019043791,-175.32252107,0.00033151,2]
[398954536,1766019043800,-654.65,0.00033165,2]
[398954537,1766019043810,-200.0,0.00033391,10]
[398954539,1766019043819,-204.75,0.00033599,2]
[398954541,1766019043828,-234.90137071,0.00033691,2]
[398954543,1766019043838,-7315.5165995,0.00033741,2]
[398954544,1766019043848,-1000.0,0.0003378,21]
[398954545,1766019043857,-161.42,0.000342,30]
[398954546,1766019043866,-721.45,0.00034327,30]
[398954547,1766019043875,-4102.52150678,0.0003452,7]
[398954548,1766019043885,-178.362,0.00034885,40]
[398954549,1766019043895,-264.56833668,0.00034984,2]
[398954550,1766019043904,-1000.0,0.00035615,30]
[398954551,1766019043913,-1000.0,0.00035615,30]
[398954552,1766019043922,-1000.0,0.00035615,30]
[398954553,1766019043931,-163.0,0.000358,90]
[398954554,1766019043940,-2000.0,0.000366,2]
[398954555,1766019043950,-7315.5165995,0.00036641,2]
[398954556,1766019043959,-1000.0,0.00037799,30]
[398954557,1766019043968,-5476.0,0.000378,117]
[398954558,1766019043977,-200.0,0.000378,10]
[398954559,1766019043987,-150.0,0.00038268,7]
[398954560,1766019043996,-150.0,0.00038268,7]
[398954561,1766019044005,-150.00000001,0.00038268,7]
[398954562,1766019044015,-150.0,0.00038268,7]
[398954563,1766019044024,-150.0,0.00038268,7]
[398954564,1766019044033,-150.0,0.00038268,7]
[398954565,1766019044042,-150.0,0.00038268,7]
[398954566,1766019044051,-167.36306111,0.00038268,7]
[398954567,1766019044060,-150.0,0.00038268,7]
[398954568,1766019044070,-150.0,0.00038268,7]
[398954569,1766019044079,-150.0,0.00038268,7]
[398954570,1766019044088,-150.0,0.00038268,7]
[398954571,1766019044097,-150.0,0.00038268,7]
[398954572,1766019044106,-191.51206096,0.00038268,7]
[398954573,1766019044115,-150.0,0.00038268,7]
[398954574,1766019044124,-150.0,0.00038268,7]
[398954575,1766019044134,-150.0,0.00038268,7]
[398954576,1766019044143,-167.36306111,0.00038311,7]
[398954577,1766019044152,-150.0,0.00038332,7]
[398954578,1766019044162,-150.0,0.00038332,7]
[398954579,1766019044172,-150.0,0.00038341,7]
[398954580,1766019044182,-150.0,0.00038349,7]
[398954581,1766019044192,-167.36306111,0.00038354,7]
[398954582,1766019044201,-3804.9,0.00038356,120]
[398954583,1766019044211,-600.0,0.00038356,30]
[398954584,1766019044226,-150.0,0.00038363,7]
[398954585,1766019044236,-150.0,0.00038394,7]
[398954586,1766019044246,-150.0,0.00038395,7]
[398954587,1766019044255,-150.0,0.00038395,7]
[398954588,1766019044265,-167.36306111,0.00038397,7]
[398954589,1766019044275,-171.04,0.000384,14]
[398954590,1766019044284,-250.19,0.000384,14]
[398954591,1766019044295,-150.0,0.00038413,7]
[398954592,1766019044305,-150.0,0.00038429,7]
[398954593,1766019044314,-150.0,0.00038432,7]
[398954594,1766019044325,-167.36306111,0.0003844,7]
[398954595,1766019044335,-150.0,0.00038457,7]
[398954596,1766019044344,-150.0,0.00038459,7]
[398954597,1766019044354,-150.0,0.00038459,7]
[398954598,1766019044364,-1000.0,0.00038476,5]
[398954599,1766019044374,-167.36306111,0.00038483,7]
[398954600,1766019044383,-150.0,0.00038485,7]
[398954601,1766019044393,-150.0,0.00038509,7]
[398954602,1766019044403,-150.0,0.00038519,7]
[398954603,1766019044412,-150.0,0.00038522,7]
[398954604,1766019044422,-150.0,0.00038522,7]
[398954605,1766019044431,-167.36306111,0.00038526,7]
[398954606,1766019044440,-150.0,0.00038534,7]
[398954607,1766019044450,-150.0,0.00038552,7]
[398954608,1766019044460,-150.0,0.00038552,7]
[398954609,1766019044470,-150.0,0.00038557,7]
[398954610,1766019044479,-167.36306111,0.00038569,7]
[398954611,1766019044489,-150.0,0.00038586,7]
[398954612,1766019044498,-150.0,0.00038586,7]
[398954613,1766019044512,-150.0,0.00038589,7]
[398954614,1766019044521,-150.0,0.00038596,7]
[398954615,1766019044531,-150.0,0.00038596,7]
[398954616,1766019044540,-167.36306111,0.00038612,7]
[398954617,1766019044549,-150.0,0.00038629,7]
[398954618,1766019044559,-150.0,0.00038644,7]
[398954619,1766019044568,-150.0,0.00038646,7]
[398954620,1766019044578,-150.0,0.00038649,7]
[398954621,1766019044588,-150.0,0.00038649,7]
[398954622,1766019044597,-167.36306111,0.00038655,7]
[398954623,1766019044606,-150.0,0.0003867,7]
[398954624,1766019044616,-167.36306111,0.00038698,7]
[398954625,1766019044625,-150.0,0.00038701,7]
[398954626,1766019044635,-150.0,0.00038713,7]
[398954627,1766019044644,-150.0,0.00038713,7]
[398954628,1766019044653,-264.56833668,0.00038713,2]
[398954629,1766019044662,-167.36306111,0.00038741,7]
[398954630,1766019044671,-150.0,0.00038741,7]
[398954631,1766019044681,-150.0,0.0003875,7]
[398954632,1766019044690,-150.0,0.00038759,7]
[398954633,1766019044699,-150.0,0.00038769,7]
[398954634,1766019044708,-150.0,0.00038773,7]
[398954635,1766019044717,-150.0,0.00038776,7]
[398954636,1766019044727,-150.0,0.00038776,7]
[398954637,1766019044736,-167.36306111,0.00038784,7]
[398954638,1766019044913,-150.0,0.000388,7]
[398954639,1766019044922,-150.0,0.000388,7]
[398954640,1766019044931,-167.36306111,0.00038827,7]
[398954641,1766019044939,-150.0,0.0003883,7]
[398954642,1766019044948,-150.0,0.00038835,7]
[398954643,1766019044957,-150.0,0.00038835,7]
[398954644,1766019044966,-150.0,0.0003884,7]
[398954645,1766019044975,-150.0,0.0003884,7]
[398954646,1766019044984,-150.0,0.00038845,7]
[398954647,1766019044993,-167.36306111,0.0003887,7]
[398954648,1766019045002,-150.0,0.00038894,7]
[398954649,1766019045011,-150.0,0.00038903,7]
[398954650,1766019045020,-150.0,0.00038903,7]
[398954651,1766019045029,-600.0,0.00038904,30]
[398954652,1766019045038,-150.0,0.0003891,7]
[398954653,1766019045048,-167.36306111,0.00038913,7]
[398954654,1766019045056,-150.0,0.00038917,7]
[398954655,1766019045065,-150.0,0.00038923,7]